{"text_format":"1","workbook":"xlsx","n_sheets":3,"sheets":["MV obv partijkeuring Bouwstof","Splitsing partij","Samenvoegen partij"],"not_rendered":{"charts":0,"images":0,"macros":1,"external_links":0,"defined_names":3,"comments":2,"pivot_tables":0},"unopened":[],"bounds":{"document_bytes":16777216,"sheet_cells":100000,"rows_first":2000,"rows_last":500,"rows_between":2000,"halvings":0,"cell_chars":16384,"cell_head_chars":4096},"cells_cut":0,"cells_raw":0,"read":"whole","date_system":"1900"}

{"sheet":"MV obv partijkeuring Bouwstof","index":0,"n_rows":84,"n_cols":15,"rows_kept":84,"cut":false,"hidden":false,"merged":[[0,1,0,9],[41,1,41,9],[43,1,43,9],[22,1,22,9],[23,1,23,9],[24,1,24,9],[18,1,18,9],[19,1,19,9],[20,1,20,9],[2,1,2,9],[11,1,14,8],[15,1,15,8],[31,1,31,9],[74,6,74,8],[80,4,81,9],[83,4,84,9],[64,7,64,9],[65,7,65,8],[70,1,71,9],[50,2,52,9],[59,1,59,9],[60,1,60,9],[64,1,66,4],[5,6,6,8],[54,2,56,9],[33,1,33,9],[35,1,35,2],[28,1,28,9],[29,1,29,9],[47,4,47,9],[66,7,68,9],[62,1,62,2]]}
[null,"Milieuverklaring (bestemd voor eenmalig gebruik)",null,null,null,null,null,null,null,null,null,null,"Rbk 2022, par. 4.1 MV op basis van een partijkeuring"]
[]
[null,"Verklaring op grond van een partijkeuring Bouwstof",null,null,null,null,null,null,null,null,null,null,"Rbk art. 4.10 lid 1"]
[]
[]
[null,"Uniek nummer van de verklaring:",null,null,null,null,"<nummer>",null,null,null,null,null,"Rbk, art. 4.11 lid e",null,{"$f":"IF(G6=\"<nummer>\",1,0)","v":1}]
[]
[null,"Deze verklaring heeft betrekking op een partij Bouwstof",null,null,null,null,null,"niet-vormgegeven bouwstof",null,null,null,null,null,true,{"$f":"IF(AND(N8=TRUE,N9=FALSE),1,0)","v":1}]
[null,null,null,{"$f":"IF(AND(O8=0,O9=0),\"1 hokje aanvinken\",\"\")","v":""},null,null,null,"vormgegeven bouwstof",null,null,null,null,null,false,{"$f":"IF(AND(N8=FALSE,N9=TRUE),1,0)","v":0}]
[]
[null,"Beperking van de geldigheid van de MV"]
[null,"Een verklaring op grond van een partijkeuring is bestemd voor eenmalig  gebruik bij het verrichten van een handeling met betrekking tot de partij van een bouwstof waarvoor zij is afgegeven, en wordt niet afgegeven als voor de partij al een andere milieuverklaring bodemkwaliteit is afgegeven.",null,null,null,null,null,null,null,null,null,null,"Rbk art. 4.10 lid 1"]
[]
[]
[]
[null,"Een verklaring op grond van een partijkeuring wordt niet afgegeven voor een partij die door samenvoeging van partijen is ontstaan.",null,null,null,null,null,null,null,null,null,null,"Rbk art. 4.10 lid 3"]
[]
[null,"Naam en adres van de persoon die onderhavige verklaring afgeeft",null,null,null,null,null,null,null,null,null,null,"Rbk, art.4.11 lid 1a"]
[null,"<naam>",null,null,null,null,null,null,null,null,null,null,null,null,{"$f":"IF(B19=\"<naam>\",1,0)","v":1}]
[null,"<postcode en plaatsnaam>",null,null,null,null,null,null,null,null,null,null,null,null,{"$f":"IF(B20=\"<postcode en plaatsnaam>\",1,0)","v":1}]
[null,"<straatnaam en nummer>",null,null,null,null,null,null,null,null,null,null,null,null,{"$f":"IF(B21=\"<straatnaam en nummer>\",1,0)","v":1}]
[null,"Naam en adres van de persoon die de partijkeuring heeft verricht",null,null,null,null,null,null,null,null,null,null,"Rbk, art. 4.11 lid ?"]
[null,"<naam onderzoeksbureau en naam contactpersoon>",null,null,null,null,null,null,null,null,null,null,null,null,{"$f":"IF(B23=\"<naam onderzoeksbureau en naam contactpersoon>\",1,0)","v":1}]
[null,"<postcode en plaatsnaam>",null,null,null,null,null,null,null,null,null,null,null,null,{"$f":"IF(B24=\"<postcode en plaatsnaam>\",1,0)","v":1}]
[null,"<straatnaam en nummer>",null,null,null,null,null,null,null,null,null,null,null,null,{"$f":"IF(B25=\"<straatnaam en nummer>\",1,0)","v":1}]
[]
[null,"Informatie uit de rapportage partijkeuring"]
[null,"Uniek nummer van het rapport van de rapportage partijkeuring Bouwstof:"]
[null,"<rapportnummer partijkeuring bouwstof>",null,null,null,null,null,null,null,null,null,null,"Rbk, art. 4.11 lid 1b",null,{"$f":"IF(B29=\"<rapportnummer partijkeuring bouwstof>\",1,0)","v":1}]
[null,"<datum rapport partijkeuring bouwstof>",null,null,null,null,null,null,null,null,null,null,"?",null,{"$f":"IF(B30=\"<datum rapport partijkeuring bouwstof>\",1,0)","v":1}]
[null,"naam van de bouwstof:",null,null,null,null,null,null,null,null,null,null,"Rbk, art. 4.11 lid 1c1"]
[null,"<naam>",null,null,null,null,null,null,null,null,null,null,null,null,{"$f":"IF(B32=\"<naam>\",1,0)","v":1}]
[null,"nauwkeurige omschrijving van de bouwstof:",null,null,null,null,null,null,null,null,null,null,"Rbk, art. 4.11 lid 1c1"]
[null,"<omschrijving bouwstof>",null,null,null,null,null,null,null,null,null,null,null,null,{"$f":"IF(B34=\"<omschrijving bouwstof>\",1,0)","v":1}]
[null,"grootte van de partij in tonnen",null,null,null,null,null,null,null,null,null,null,"Rbk, art. 4.11 lid 1c2"]
[null,"<ton>",null,"ton",null,null,null,null,null,null,null,null,null,null,{"$f":"IF(B36=\"<ton>\",1,0)","v":1}]
[null,"de partij voldoet voor alle stoffen uit bijlage A aan de kwaliteitseisen",null,null,null,null,null,null,null,null,null,null,"Rbk, art. 4.11 lid 1c3"]
[null,null,"ja",null,null,null,null,null,null,null,null,null,null,true,{"$f":"IF(AND(N38=TRUE,N39=FALSE),1,0)","v":1}]
[null,null,"nee",{"$f":"IF(N39=TRUE,\"De bouwstof is niet-toepasbaar\",\"\")","v":""},null,null,null,null,null,null,null,null,null,false,{"$f":"IF(AND(N38=FALSE,N39=TRUE),1,0)","v":0}]
[null,{"$f":"IF(AND(O38=0,O39=0),\"1 hokje aanvinken\",\"\")","v":""}]
[null,"Eventueel onderzochte andere verontreinigingen dan in Rbk, bijl. A genoemd",null,null,null,null,null,null,null,null,null,null,"Rbk, art. 4.11 lid 1c5"]
[null,"<andere dan bijl. A/n.v.t.>",null,null,null,null,null,null,null,null,null,null,null,null,{"$f":"IF(B42=\"<andere dan bijl. A/n.v.t.>\",1,0)","v":1}]
[null,"Eventueel andere relevante parameters (concentraties, emissies, waarden)",null,null,null,null,null,null,null,null,null,null,"Rbk, art. 4.11 lid 1c5"]
[null,"<conc. etc./n.v.t.>",null,null,null,null,null,null,null,null,null,null,null,null,{"$f":"IF(B44=\"<conc. etc./n.v.t.>\",1,0)","v":1}]
[]
[null,null,"de bouwstof was al voor 1 juli 2008 toegepast",null,null,null,null,null,null,null,null,null,"Rbk, art. 4.11 lid 1c4",null,false]
[null,null,"de voor 01-08-2008 toegepaste bouwstof voldoet aan Rbk, art. 4.8 lid 7",null,null,null,null,null,null,null,null,null,null,null,false]
[null,"het betreft de parameters:",null,null,"<parameters>",null,null,null,null,null,null,null,null,null,{"$f":"IF(E48=\"<parameters>\",1,0)","v":1}]
[null,null,"de voor 01-08-2008 toegepaste bouwstof voldoet niet aan Rbk, art. 4.8 lid 7",null,null,null,null,null,null,null,null,null,null,false,false]
[null,null,null,null,null,null,null,null,null,null,null,null,null,null,false]
[null,null,"De milieuverklaring heeft betrekking op een partij van een bouwstof die blijkens bijlage A uitsluitend uitsluitend geschikt is voor toepassing in grote oppervlaktewaterlichamen die volgens de waterbeheerder geen bijzondere bescherming behoeven te krijgen.",null,null,null,null,null,null,null,null,null,null,null,false]
[]
[]
[]
[null,null,"De milieuverklaring heeft betrekking op een partij van een bouwstof die blijkens bijlage A uitsluitend geschikt is voor toepassing op plaatsen waar direct contact mogelijk is met zeewater of brak water waarvan het gehalte chloride van nature meer dan 5.000 mg/l bedraagt."]
[]
[]
[]
[null,"Eventuele voorwaarden en beperkingen",null,null,null,null,null,null,null,null,null,null,"Rbk, art. 4.11 lid d"]
[null,"<voorwaarden>",null,null,null,null,null,null,null,null,null,null,null,null,{"$f":"IF(B60=\"<voorwaarden>\",1,0)","v":1}]
[null,"<beperkingen>",null,null,null,null,null,null,null,null,null,null,null,null,{"$f":"IF(B61=\"<beperkingen>\",1,0)","v":1}]
[]
[null,"Bij deze MV horen",null,0,"bijlagen"]
[]
[null,"(geautoriseerd) natuurlijk persoon die de milieuverklaring afgeeft",null,null,null,"naam:",null,"<naam>",null,null,null,null,"Rbk, art. 4.11 lid 1f",null,{"$f":"IF(H65=\"<naam>\",1,0)","v":1}]
[null,null,null,null,null,"datum:",null,"<datum>",null,"<uurtijd>",null,null,"Rbk, art. 4.11 lid 1f",null,{"$f":"IF(H66=\"<datum>\",1,0)","v":1}]
[null,null,null,null,null,"ondertekening:",null,"<handtekening>",null,null,null,null,"Rbk, art. 4.11 lid 1f",null,{"$f":"IF(H67=\"<handtekening>\",1,0)","v":1}]
[null,null,null,null,null,null,null,null,null,null,null,null,null,null,{"$f":"IF(J66=\"<uurtijd>\",1,0)","v":1}]
[]
[]
[null,"Disclaimer. Deze verklaring is geldig op het moment van ondertekening. Wat er daarna met de ontvangende bodem gebeurt is voor verantwoordelijkheid van de daadwerkelijke uitvoerder."]
[]
[null,null,null,null,null,null,null,null,null,null,null,null,null,null,{"$f":"IF(G75=\"<nummer>\",1,0)","v":0}]
[null,{"$f":"IF(OR('Splitsing partij'!O9=TRUE,'Samenvoegen partij'!O15=TRUE),\"Kopie van Milieuverklaring gebaseerd op een bodemonderzoek\",\"\")","v":""}]
[null,{"$f":"IF(OR('Splitsing partij'!O9=TRUE,'Samenvoegen partij'!O15=TRUE),\"Uniek nummer van deze kopie\",\"\")","v":""},null,null,null,null,{"$f":"IF(OR('Splitsing partij'!O9=TRUE,'Samenvoegen partij'!O15=TRUE),\"<nummer>\",\"\")","v":""},null,null,null,null,null,"Rbk art. 4.13 lid 4 onder a danwel art. 4.12 lid 3 onder a"]
[null,null,null,null,null,null,null,null,null,null,null,null,null,null,true]
[null,{"$f":"IF(OR('Splitsing partij'!O9=TRUE,'Samenvoegen partij'!O15=TRUE),\"Ondertekening:\",\"\")","v":""},null,null,null,null,null,null,null,null,null,null,"Rbk art. 4.13 lid 4 onder b danwel 4.12 lid 3 onder b",null,true]
[null,null,{"$f":"IF(OR('Splitsing partij'!O9=TRUE,'Samenvoegen partij'!O15=TRUE),\"door de persoon die de kopie heeft afgegeven geautoriseerd persoon\",\"\")","v":""}]
[null,null,{"$f":"IF(OR('Splitsing partij'!O9=TRUE,'Samenvoegen partij'!O15=TRUE),\"danwel de natuurlijke persoon die de kopie onder eigen naam en verantwoordelijkheid afgeeft:\",\"\")","v":""},null,null,null,null,null,null,null,null,null,null,null,{"$f":"IF(E81=\"<naam>\",1,0)","v":0}]
[]
[null,{"$f":"IF(OR('Splitsing partij'!O9=TRUE,'Samenvoegen partij'!O15=TRUE),\"Naam ondergetekende\",\"\")","v":""},null,null,{"$f":"IF(OR('Splitsing partij'!O9=TRUE,'Samenvoegen partij'!O15=TRUE),\"<naam>\",\"\")","v":""}]
[null,null,null,null,null,null,null,null,null,null,null,null,null,null,{"$f":"IF(E84=\"<datum>\",1,0)","v":0}]
[]
[null,{"$f":"IF(OR('Splitsing partij'!O9=TRUE,'Samenvoegen partij'!O15=TRUE),\"Datum van ondertekening\",\"\")","v":""},null,null,{"$f":"IF(OR('Splitsing partij'!O9=TRUE,'Samenvoegen partij'!O15=TRUE),\"<datum>\",\"\")","v":""}]

{"sheet":"Splitsing partij","index":1,"n_rows":39,"n_cols":15,"rows_kept":39,"cut":false,"hidden":false,"merged":[[27,1,29,8],[4,6,6,8],[4,9,6,9],[35,4,36,9],[38,4,39,9],[8,2,8,9],[14,6,16,8],[17,6,19,9],[20,6,22,9],[23,6,25,9],[0,1,0,9],[2,1,2,9],[4,1,7,5],[10,2,10,9],[12,6,13,8]]}
[null,"Afleverbon voor splitsing \n(bestemd voor eenmalig gebruik)",null,null,null,null,null,null,null,null,null,null,"Rbk 2022, par. 4.1 MV op basis van een bodemonderzoek, art.4.13 lid 1"]
[]
[null,"Verklaring gebaseerd op een partijkeuring Bouwstof"]
[]
[null,"Uniek nummer (van de kopie) van de verklaring op grond van een bodemonderzoek die betrekking heeft op de gesplitste partij:",null,null,null,null,{"$f":"'MV obv partijkeuring Bouwstof'!G6","v":"<nummer>"},null,null,null,null,null,"Rbk, art. 4.13 lid 3f"]
[null,null,null,null,null,null,null,null,null,null,null,null,null,null,{"$f":"IF(J5=\"<volg nr. Kopie>\",1,0)","v":0}]
[]
[]
[null,null,"Een kopie van de Verklaring o.b.v. partijkeuring Bouwstof is bijgevoegd.",null,null,null,null,null,null,null,null,null,"Rbk, art. 4.13 lid 1",null,false]
[null,null,"Indien de afgesplitste partij is ontstaan uit een samengevoegde partij is tevens bijgevoegd:",null,null,null,null,null,null,null,null,null,"Rbk, art. 4.13 lid 2",null,false]
[null,null,"de MV en de afleverbon van de samengevoegde partij "]
[]
[null,"Uniek nummer van de Afleverbon:",null,null,null,null,"<nummer>",null,null,null,null,null,"Rbk, art.4.13 lid 3 onder f",null,{"$f":"IF(G13=\"<nummer>\",1,0)","v":1}]
[]
[null,null,null,null,null,null,"<ton>"]
[null,"De grootte van de afgesplitste partij in tonnen:",null,null,null,null,null,null,null,"ton",null,null,"Rbk, art.4.13 lid 3 onder d",null,{"$f":"IF(G15=\"<ton>\",1,0)","v":1}]
[]
[null,null,null,null,null,null,"<naam><adres>",null,null,null,null,null,null,null,{"$f":"IF(G18=\"<naam><adres>\",1,0)","v":1}]
[null,"Naam en adres van de persoon die de partij heeft gesplitst:",null,null,null,null,null,null,null,null,null,null,"Rbk, art.4.13 lid 3 onder a"]
[]
[null,null,null,null,null,null,"<naam><adres>",null,null,null,null,null,null,null,{"$f":"IF(G21=\"<naam><adres>\",1,0)","v":1}]
[null,"Naam en adres van de persoon die de afleverbon afgeeft:",null,null,null,null,null,null,null,null,null,null,"Rbk, art.4.13 lid 3 onder b"]
[]
[null,null,null,null,null,null,"<naam><adres>",null,null,null,null,null,null,null,{"$f":"IF(G24=\"<naam><adres>\",1,0)","v":1}]
[null,"Naam en adres van de 1e afnemer van de gesplistte partij:",null,null,null,null,null,null,null,null,null,null,"Rbk, art.4.13 lid 3 onder d"]
[]
[]
[null,"Ondergetekende verklaart hierbij dat de afgesplitste partij een deel vormde van de partij waarop de verklaring op grond van een partijkeuring Bouwstof betrekking heeft.",null,null,null,null,null,null,null,null,null,null,"Rbk, art.4.13 lid 3 onder d"]
[]
[]
[]
[null,"Ondertekening:"]
[null,null,"door de persoon die de afleverbon heeft afgegeven geautoriseerd persoon",null,null,null,null,null,null,null,null,null,"Rbk, art.4.13 lid 3 onder h",null,false]
[null,null,"danwel de natuurlijke persoon die de aflverbon onder eigen naam en verantwoordelijkheid afgeeft:",null,null,null,null,null,null,null,null,null,null,null,false]
[]
[null,"Naam ondergetekende",null,null,"<naam>",null,null,null,null,null,null,null,null,null,{"$f":"IF(E36=\"<naam>\",1,0)","v":1}]
[]
[]
[null,"Datum van ondertekening",null,null,"<datum>",null,null,null,null,null,null,null,null,null,{"$f":"IF(E39=\"<datum>\",1,0)","v":1}]

{"sheet":"Samenvoegen partij","index":2,"n_rows":51,"n_cols":15,"rows_kept":51,"cut":false,"hidden":false,"merged":[[0,1,0,9],[2,1,2,9],[9,1,12,5],[9,9,11,9],[3,1,3,9],[7,1,7,9],[5,3,5,9],[9,6,9,8],[10,6,10,8],[11,6,11,8],[12,6,12,8],[14,2,15,9],[33,2,33,4],[33,5,33,7],[33,8,33,9],[47,4,48,9],[17,6,18,8],[19,6,21,8],[22,6,24,9],[25,6,27,9],[28,6,30,9],[50,4,51,9],[34,2,34,4],[35,2,35,4],[36,2,36,4],[39,1,41,8],[37,2,37,4],[34,5,34,7],[35,5,35,7],[36,5,36,7],[37,5,37,7],[34,8,34,9],[35,8,35,9],[36,8,36,9],[37,8,37,9]]}
[null,"Afleverbon voor samenvoeging\n(bestemd voor eenmalig gebruik)",null,null,null,null,null,null,null,null,null,null,"Rbk 2022, par. 4.1 MV op basis van een bodemonderzoek, art.4.13 lid 1"]
[]
[null,"Verklaring gebaseerd op een partijkeuringen Bouwstof"]
[null,"van partijen van bouwstoffen van hetzelfde producttype",null,null,null,null,null,null,null,null,null,null,"Rbk. Art. 4.12 lid 1"]
[]
[null,"Producttype:",null,"<producttype>",null,null,null,null,null,null,null,null,"Rbk, art. 4.12 lid 2 onder e",null,{"$f":"IF(D6=\"<producttype>\",1,0)","v":1}]
[null,"Belangrijkste kenmerken van het producttype:"]
[null,"<kenmerken>",null,null,null,null,null,null,null,null,null,null,"Rbk, art. 4.12 lid 2 onder e",null,{"$f":"IF(B8=\"<kenmerken>\",1,0)","v":1}]
[]
[null,"Unieke nummers (van de kopieën) van de verklaringen op grond van een partijkeuring Bouwstof die betrekking hebben op de samengevoegde partij:",null,null,null,null,{"$f":"'MV obv partijkeuring Bouwstof'!G6","v":"<nummer>"},null,null,null,null,null,"Rbk, art. 4.12 lid 2 onder d"]
[null,null,null,null,null,null,"<nummer 2>",null,null,null,null,null,null,null,{"$f":"IF(J10=\"<volg nr. Kopie>\",1,0)","v":0}]
[null,null,null,null,null,null,"<nummer 3>"]
[null,null,null,null,null,null,"<nummer 4>"]
[]
[null,null,"Kopieën van de Verklaringen o.b.v. partijkeuring Bouwstof zijn bijgevoegd\n(ten minste een kopie van een van de verklaringen).",null,null,null,null,null,null,null,null,null,"Rbk, art. 4.12 lid 1",null,false]
[]
[]
[null,"Uniek nummer van de Afleverbon:",null,null,null,null,"<nummer>",null,null,null,null,null,"Rbk, art.4.12 lid 2g",null,{"$f":"IF(G18=\"<nummer>\",1,0)","v":1}]
[]
[null,null,null,null,null,null,"<ton>"]
[null,"Grootte van de samengevoegde partij in tonnen:",null,null,null,null,null,null,null,"ton",null,null,"Rbk, art.4.12 lid 2 onder e",null,{"$f":"IF(G20=\"<ton>\",1,0)","v":1}]
[]
[null,null,null,null,null,null,"<naam><adres>",null,null,null,null,null,null,null,{"$f":"IF(G23=\"<naam><adres>\",1,0)","v":1}]
[null,"Naam en adres van de persoon die de partij heeft gesplitst:",null,null,null,null,null,null,null,null,null,null,"Rbk, art.4.12 lid 2 onder a"]
[]
[null,null,null,null,null,null,"<naam><adres>",null,null,null,null,null,null,null,{"$f":"IF(G26=\"<naam><adres>\",1,0)","v":1}]
[null,"Naam en adres van de persoon die de afleverbon afgeeft:",null,null,null,null,null,null,null,null,null,null,"Rbk, art.4.12 lid 2 onder b"]
[]
[null,null,null,null,null,null,"<naam><adres>",null,null,null,null,null,null,null,{"$f":"IF(G29=\"<naam><adres>\",1,0)","v":1}]
[null,"Naam en adres van de 1e afnemer van de gesplistte partij:",null,null,null,null,null,null,null,null,null,null,"Rbk, art.4.12 lid 2 onder c"]
[]
[]
[null,"Bijzonderheden en belangrijke kenmerken van de samenstellende partijen:",null,null,null,null,null,null,null,null,null,null,"Rbk, art. 4.12 lid2 onder f"]
[null,null,"kenmerken",null,null,"producttype",null,null,"tonnage"]
[null,"partij 1"]
[null,"partij 2"]
[null,"partij 3"]
[null,"partij 4"]
[]
[null,"Ondergetekende verklaart hierbij dat de afgesplitste partij een deel vormde van de partij waarop de verklaring op grond van een partijkeuring Bouwstof betrekking heeft.",null,null,null,null,null,null,null,null,null,null,"Rbk, art.4.12 lid 2 onder d"]
[]
[]
[]
[null,"Ondertekening:"]
[null,null,"door de persoon die de afleverbon heeft afgegeven geautoriseerd persoon",null,null,null,null,null,null,null,null,null,"Rbk, art.4.12 lid 2 onder h",null,false]
[null,null,"danwel de natuurlijke persoon die de aflverbon onder eigen naam en verantwoordelijkheid afgeeft:",null,null,null,null,null,null,null,null,null,null,null,false]
[]
[null,"Naam ondergetekende",null,null,"<naam>",null,null,null,null,null,null,null,null,null,{"$f":"IF(E48=\"<naam>\",1,0)","v":1}]
[]
[]
[null,"Datum van ondertekening",null,null,"<datum>",null,null,null,null,null,null,null,null,null,{"$f":"IF(E51=\"<datum>\",1,0)","v":1}]